bitfinex-derivatives/quotes_ETHF0:USTF0_20251225
["timestamp","ask_amount","ask_price","bid_price","bid_amount"]
[1766688126134,0.00918479,2963.9,2962.9,2.37920671]
[1766688126438,0.00918479,2963.9,2963.0,2.37920671]
[1766688126938,2.394,2963.4,2963.0,2.37920671]
[1766688127140,0.00918479,2963.9,2963.0,2.37920671]
[1766688127641,0.2183,2963.8,2963.0,2.37920671]
[1766688128635,0.2183,2963.8,2963.1,2.37920671]
[1766688130537,0.2183,2963.8,2963.2,2.37920671]
[1766688131243,0.2183,2963.8,2963.2,2.27980671]
[1766688131628,0.2183,2963.8,2962.7,3.03373534]
[1766688132438,0.2183,2963.8,2962.7,0.0050644]
[1766688140040,0.2183,2963.8,2962.6,3.02867094]
[1766688140246,0.16882,2963.7,2962.1,3.03215864]
[1766688140546,0.16884,2963.4,2962.1,0.0034877]
[1766688140739,3.913,2963.3,2962.1,0.0034877]
[1766688140938,3.913,2963.3,2962.4,0.0050644]
[1766688141443,3.913,2963.3,2962.2,2.40971655]
[1766688142346,3.913,2963.3,2962.5,0.0050644]
[1766688144443,3.913,2963.3,2962.1,2.41320425]
[1766688144941,3.913,2963.3,2962.6,1.70659253]
[1766688145448,3.913,2963.3,2962.1,2.41320425]
[1766688145643,3.913,2963.3,2962.4,0.0050644]
[1766688149052,3.913,2963.3,2962.1,0.0034877]
[1766688150055,3.913,2963.3,2962.4,0.00337628]
[1766688151953,3.913,2963.3,2962.7,1.20285258]
[1766688152350,3.913,2963.3,2962.6,1.20285258]
[1766688153244,0.2184,2963.2,2962.7,1.20285258]
[1766688153446,0.2184,2963.2,2962.7,1.04385258]
[1766688153651,0.2184,2963.2,2962.6,0.07112898]
[1766688153853,0.2184,2963.2,2962.4,0.00337628]
[1766688154455,0.2184,2963.2,2962.1,0.0034877]
[1766688155352,0.2184,2963.2,2962.1,2.41320425]
[1766688159053,0.16889,2962.6,2960.8,3.02867094]
[1766688159247,2.715,2962.5,2961.4,0.0050644]
[1766688160055,2.715,2962.5,2961.4,0.00812432]
[1766688160258,0.0050644,2962.2,2961.4,0.00812432]
[1766688160963,2.715,2962.5,2961.4,0.00812432]
[1766688161158,2.6156,2962.5,2961.4,0.00812432]
[1766688161363,8.507,2963.0,2961.4,0.00812432]
[1766688162066,0.0050644,2962.5,2961.4,0.00812432]
[1766688162364,8.507,2963.0,2961.4,0.00812432]
[1766688163163,0.0050644,2962.5,2961.4,0.00812432]
[1766688163355,8.507,2963.0,2961.4,0.00812432]
[1766688163662,8.507,2963.0,2961.6,1.23141041]
[1766688164456,0.0050644,2962.6,2961.6,1.23141041]
[1766688164656,8.507,2963.0,2961.6,1.23141041]
[1766688165064,8.507,2963.0,2962.4,1.80708613]
[1766688165662,8.5120644,2963.0,2962.4,1.80708613]
[1766688166357,8.5120644,2963.0,2962.5,1.80708613]
[1766688169055,8.5120644,2963.0,2962.6,1.80708613]
[1766688169360,8.5120644,2963.0,2962.7,1.80708613]
[1766688169557,0.0899688,2963.2,2962.7,1.80906882]
[1766688169756,0.0899688,2963.2,2962.7,1.68986882]
[1766688170662,0.09334508,2963.2,2962.7,0.91526882]
[1766688170863,0.09334508,2963.2,2962.7,0.50096882]
[1766688171064,0.09334508,2963.2,2962.1,2.41209177]
[1766688172359,0.00337628,2963.2,2962.1,2.41209177]
[1766688173967,0.00337628,2963.2,2962.4,0.83601121]
[1766688175669,0.09,2963.1,2962.4,0.83601121]
[1766688178366,8.858,2963.6,2962.7,0.83601121]
[1766688178570,0.1688,2964.2,2963.3,0.83601121]
[1766688178868,9.6568,2964.2,2963.3,0.83601121]
[1766688179068,50.4568,2964.2,2963.3,0.83601121]
[1766688179462,9.6568,2964.2,2963.3,0.84107561]
[1766688180566,0.16876,2964.7,2963.6,0.83601121]
[1766688180764,9.566,2964.6,2963.6,0.83601121]
[1766688181571,9.56990596,2964.6,2963.6,0.83890811]
[1766688181969,9.56990596,2964.6,2963.6,0.0028969]
[1766688182971,0.00390596,2964.6,2963.6,0.0028969]
[1766688196580,10.073,2964.5,2963.3,0.0050644]
[1766688197887,10.073,2964.5,2962.5,0.16889]
[1766688198791,0.0050644,2963.8,2963.2,0.0050644]
[1766688199583,0.0050644,2963.8,2962.5,0.00319709]
[1766688200684,0.0050644,2963.8,2962.9,0.0050644]
[1766688200890,0.0050644,2963.8,2962.5,0.00319709]
[1766688202187,0.0050644,2963.8,2962.9,0.0050644]
[1766688207994,10.079,2963.7,2962.9,0.0050644]
[1766688209600,10.079,2963.7,2962.7,1.8025225]
[1766688210488,10.079,2963.7,2962.9,0.0050644]
[1766688211298,10.079,2963.7,2962.6,1.8025225]
[1766688212193,10.079,2963.7,2962.9,0.0050644]
[1766688214894,10.079,2963.7,2962.6,1.8025225]
[1766688215096,10.079,2963.7,2962.5,0.00319709]
[1766688215097,0.16884,2963.5,2962.5,0.00319709]
[1766688215900,0.16884,2963.5,2962.7,0.00337628]
[1766688219901,0.16884,2963.5,2962.5,0.00319709]
[1766688220101,0.16884,2963.4,2962.5,0.00319709]
[1766688223402,0.16884,2963.4,2962.1,1.8025225]
[1766688223804,0.16885,2963.3,2962.1,1.8025225]
[1766688224309,0.16885,2963.3,2962.2,1.8025225]
[1766688224608,0.16885,2963.3,2962.2,1.80607077]
[1766688225106,0.16885,2963.3,2962.3,1.8025225]
[1766688225301,0.16885,2963.3,2962.4,1.8025225]
[1766688225609,0.16885,2963.3,2962.3,1.8025225]
[1766688226200,0.16885,2963.3,2962.4,1.8025225]
[1766688232414,0.16885,2963.3,2962.3,1.8025225]
[1766688233515,0.16885,2963.2,2962.2,1.80607077]
[1766688235009,0.16886,2963.1,2962.2,1.80607077]
[1766688236422,0.16888,2962.7,2961.2,2.41209177]
[1766688236618,0.0050644,2962.2,2961.2,2.41209177]
[1766688236919,0.0050644,2962.2,2961.0,2.41209177]
[1766688237317,0.0050644,2962.2,2961.0,2.41602989]
[1766688237509,0.00797835,2962.2,2961.0,2.41602989]
[1766688239224,0.00797835,2962.2,2961.0,0.00393812]
[1766688240624,0.00797835,2962.2,2961.0,2.41602989]
[1766688240824,0.00797835,2962.2,2961.0,0.00393812]
[1766688241324,0.3375,2962.1,2961.0,0.00393812]
[1766688266057,0.3375,2962.1,2960.5,0.95874952]
[1766688266362,0.16897,2961.2,2959.2,0.83605812]
[1766688266655,0.0050644,2960.5,2959.6,0.83605812]
[1766688266864,7.837,2961.1,2959.6,0.83605812]
[1766688267162,0.16893,2961.8,2959.6,0.83854546]
[1766688267355,41.751,2961.7,2959.6,0.83854546]
[1766688267755,0.0050644,2960.9,2960.4,0.0050644]
[1766688272157,0.3377,2960.8,2960.4,0.0050644]
[1766688279267,0.3377,2960.8,2960.0,0.83716118]
[1766688280865,0.16903,2960.2,2959.4,0.0008]
[1766688281162,10.388,2960.7,2959.9,0.83716118]
[1766688281367,0.50669,2960.8,2959.9,0.83716118]
[1766688281759,0.50669,2960.8,2959.9,0.8398149]
[1766688282169,0.3377,2960.8,2959.9,0.8398149]
[1766688283156,40.8,2961.1,2959.9,0.8398149]
[1766688283470,11.292,2961.2,2959.9,0.8398149]
[1766688283961,52.092,2961.2,2959.9,0.00265372]
[1766688286677,0.3377,2960.8,2959.9,0.00265372]
[1766688288581,11.292,2961.2,2960.3,0.83716118]
[1766688288876,0.16895,2961.4,2960.3,0.84222558]
[1766688289084,11.67995,2961.4,2960.3,0.84222558]
[1766688289477,11.67995,2961.4,2960.3,0.0050644]
[1766688289668,0.0050644,2961.1,2960.3,0.0050644]
[1766688291475,0.3377,2961.0,2959.9,0.00265372]
[1766688301485,1.17486118,2961.0,2959.4,0.0008]
[1766688301679,1.00615118,2960.7,2959.4,0.0008]
[1766688301884,1.00615118,2960.7,2959.0,0.83716118]
[1766688302183,0.169,2960.5,2958.9,0.83716118]
[1766688302383,11.507,2960.5,2958.9,0.83716118]
[1766688302581,11.507,2960.5,2958.9,0.84025138]
[1766688302782,11.507,2960.5,2959.2,0.83716118]
[1766688303279,11.507,2960.5,2959.4,2.4106537]
[1766688303589,11.507,2960.5,2959.5,0.83716118]
[1766688303886,11.507,2960.5,2959.5,3.24781488]
[1766688305781,11.507,2960.5,2958.9,0.0030902]
[1766688305782,11.338,2960.5,2959.6,2.4106537]
[1766688306388,11.338,2960.5,2959.8,2.4106537]
[1766688310996,11.338,2960.5,2959.9,2.4106537]
[1766688320606,0.3377,2960.4,2959.9,2.4106537]
[1766688324504,0.3377,2960.4,2959.6,0.83716118]
[1766688328522,0.3377,2960.4,2959.5,0.83716118]
[1766688334125,0.3377,2960.4,2959.4,2.4164121]
[1766688336424,11.52098,2960.9,2959.6,2.4164121]
[1766688336929,11.52098,2960.9,2959.7,2.4164121]
[1766688337230,11.52098,2960.9,2959.6,2.4164121]
[1766688341727,11.52098,2960.9,2959.7,2.4164121]
[1766688343330,11.352,2960.9,2959.7,2.4164121]
[1766688343731,0.0050644,2961.1,2959.7,2.4164121]
[1766688343923,0.0050644,2961.1,2959.8,3.25394148]
[1766688346228,0.0050644,2961.1,2959.8,2.4164121]
[1766688346425,0.0050644,2961.1,2959.4,3.19773094]
[1766688346426,0.0050644,2961.1,2959.7,2.4164121]
[1766688350635,0.0050644,2961.1,2959.8,2.4164121]
[1766688355539,0.0050644,2961.1,2960.3,2.4106537]
[1766688359949,0.00168801,2961.1,2960.3,2.4106537]
[1766688360946,0.00168801,2961.1,2960.4,0.00337639]
[1766688363442,0.16893,2961.8,2960.4,0.00337639]
[1766688363644,0.16892,2962.0,2960.9,2.4106537]
[1766688364748,0.0050644,2961.7,2960.9,2.4106537]
[1766688384567,0.0050644,2961.7,2960.4,2.41978849]
[1766688389475,0.0050644,2961.7,2960.5,2.4164121]
[1766688393375,0.0050644,2961.7,2960.6,2.4164121]
[1766688398782,0.00291395,2962.2,2960.8,0.83695403]
[1766688399081,0.00291395,2962.2,2961.1,0.83695403]
[1766688399281,0.00291395,2962.2,2961.1,0.84048531]
[1766688399882,0.0050644,2961.9,2961.1,0.84048531]
[1766688400789,0.0050644,2961.9,2961.1,0.00353128]
[1766688421999,0.00291395,2962.2,2961.1,0.84048531]
[1766688423197,0.0050644,2961.9,2961.1,0.84048531]
[1766688423398,0.00291395,2962.2,2961.1,0.84048531]
[1766688424504,0.0050644,2961.9,2961.1,0.84048531]
[1766688425906,0.00291395,2962.2,2961.1,0.84048531]
[1766688427005,0.0050644,2961.9,2961.1,0.84048531]
[1766688427305,1.395e-05,2962.2,2961.4,0.83695403]
[1766688428207,0.00337628,2962.1,2961.4,0.83695403]
[1766688429606,1.395e-05,2962.2,2961.4,0.83695403]
[1766688430500,1.395e-05,2962.2,2961.7,0.83695403]
[1766688431002,41.63695403,2963.3,2961.7,0.83695403]
[1766688431003,40.8,2963.3,2961.7,0.83695403]
[1766688431205,0.83695403,2963.2,2962.2,0.0050644]
[1766688432008,0.84057167,2963.2,2962.2,0.0050644]
[1766688438609,0.00361764,2963.2,2962.2,0.0050644]
[1766688438816,0.16881,2964.0,2962.7,0.83695403]
[1766688439011,1.00576403,2964.0,2962.4,0.83695403]
[1766688439714,1.00839733,2964.0,2962.4,0.83695403]
[1766688440113,0.1714433,2964.0,2962.4,0.83695403]
[1766688440311,0.1714433,2964.0,2962.7,0.83695403]
[1766688441610,0.1714433,2964.0,2963.2,2.4106537]
[1766688441910,0.1714433,2964.0,2963.2,2.41469771]
[1766688442411,0.1714433,2964.0,2963.2,0.00404401]
[1766688442610,0.1714433,2964.0,2963.5,2.4106537]
[1766688444509,0.1714433,2964.0,2963.6,2.4106537]
[1766688449016,0.1714433,2964.0,2963.2,0.00404401]
[1766688450320,0.83695403,2963.8,2962.2,0.84201843]
[1766688450716,0.83695403,2963.5,2962.2,0.0050644]
[1766688451318,0.83695403,2963.5,2962.2,0.00838399]
[1766688452222,1.00578403,2963.6,2962.2,0.00838399]
[1766688452422,0.16883,2963.6,2962.2,0.84533802]
[1766688455826,0.16883,2963.6,2962.2,0.00838399]
[1766688461726,0.16883,2963.5,2962.2,0.00838399]
[1766688466236,0.16885,2963.2,2961.4,2.4164121]
[1766688466433,0.16886,2963.1,2961.3,2.4164121]
[1766688466740,0.16886,2963.1,2961.5,2.4164121]
[1766688466941,40.96886,2963.1,2961.4,2.4164121]
[1766688467134,51.45586,2963.1,2961.4,2.4164121]
[1766688467434,51.45586,2963.1,2961.4,0.00259762]
[1766688467435,0.0050644,2962.5,2961.4,0.00259762]
[1766688468440,0.0050644,2962.5,2961.7,0.0050644]
[1766688483155,0.0050644,2962.5,2961.4,0.00259762]
[1766688483355,10.864,2962.4,2961.4,0.00259762]
[1766688484157,10.864,2962.4,2961.6,0.0050644]
[1766688485063,11.0329,2962.4,2960.5,2.4164121]
[1766688485362,11.0329,2962.4,2960.4,2.5854221]
[1766688485959,0.1689,2962.3,2960.4,2.5854221]
[1766688486164,0.1689,2962.3,2961.1,0.0050644]
[1766688490166,0.16891,2962.1,2961.1,0.0050644]
[1766688492662,0.16891,2962.1,2960.4,0.0024989]
[1766688493066,0.16891,2962.1,2960.4,2.418911]
[1766688493466,0.16891,2962.1,2960.4,0.0024989]
[1766688493772,0.16891,2962.1,2961.0,0.0050644]
[1766688494364,10.864,2962.4,2961.0,0.0050644]
[1766688498779,11.0329,2962.4,2961.0,0.0050644]
[1766688518096,0.83688585,2962.2,2961.0,0.0050644]
[1766688521688,1.00578585,2962.3,2961.0,0.0050644]
[1766688525700,1.00578585,2962.3,2960.6,3.25329795]
[1766688525701,0.16894,2961.7,2960.4,0.0024989]
[1766688526001,0.17304405,2961.7,2960.4,0.83938475]
[1766688526299,40.97304405,2961.7,2960.4,0.83938475]
[1766688526694,0.17304405,2961.7,2960.8,0.00337628]
[1766688531997,10.629,2961.6,2960.8,0.00337628]
[1766688534502,10.629,2961.6,2960.4,0.0024989]
[1766688544401,0.83688585,2961.1,2959.6,2.4164121]
[1766688544603,0.0050644,2960.6,2959.6,2.4164121]
[1766688545206,0.0050644,2960.6,2959.5,4.73573536]
[1766688545408,0.0050644,2960.6,2959.5,4.73843754]
[1766688545607,0.0050644,2960.6,2959.6,2.4164121]
[1766688552416,0.16896,2961.3,2960.1,0.83688585]
[1766688552612,0.3376,2961.5,2960.1,0.83688585]
[1766688553718,0.0050644,2961.1,2960.1,0.83688585]
[1766688554318,0.0050644,2961.1,2960.2,2.4164121]
[1766688554911,0.0050644,2961.1,2959.8,3.03373534]
[1766688554912,0.0050644,2961.1,2960.4,0.83688585]
[1766688555313,0.0050644,2961.1,2960.4,3.25329795]
[1766688561131,0.3376,2961.5,2960.4,3.25329795]
[1766688561328,0.3376,2961.5,2960.5,2.4164121]
[1766688562236,0.0050644,2961.3,2960.5,2.4164121]
[1766688564433,0.0050644,2961.3,2960.4,3.25329795]
[1766688570735,0.0050644,2961.3,2960.4,2.4164121]
[1766688572936,0.3376,2961.5,2960.6,0.83688585]
[1766688573144,0.3376,2961.5,2960.3,0.83688585]
[1766688573643,0.8409899,2961.7,2960.3,0.83688585]
[1766688573837,0.0050644,2961.3,2960.3,0.83688585]
[1766688574032,0.0050644,2961.3,2960.1,2.5854321]
[1766688574230,0.0050644,2961.3,2960.1,3.42231795]
[1766688575445,0.0050644,2961.3,2960.2,2.4164121]
[1766688576137,0.3376,2961.2,2960.2,2.4164121]
[1766688580351,0.3376,2961.2,2960.0,7.2674121]
[1766688580550,0.3376,2961.2,2960.0,4.851]
[1766688581646,0.3376,2961.2,2959.9,6.54834718]
[1766688582951,0.3376,2961.2,2959.9,8.96475928]
[1766688584452,0.3376,2961.2,2959.9,6.54834718]
[1766688590260,0.3376,2961.2,2960.1,2.4164121]
[1766688590663,0.3376,2961.2,2960.0,2.4164121]
[1766688591660,0.3376,2961.2,2960.1,2.4164121]
[1766688592253,0.3376,2961.2,2960.0,2.4164121]
[1766688595356,0.0050644,2961.3,2960.0,2.4164121]
[1766688599166,0.3376,2961.2,2960.0,2.4164121]
[1766688601865,0.3376,2961.2,2959.9,2.4164121]
[1766688602668,0.3376,2961.2,2959.8,0.0050644]
[1766688603065,1.00610951,2961.0,2959.8,0.0050644]
[1766688603462,40.96898,2960.9,2959.8,0.0050644]
[1766688603868,0.16899,2960.8,2959.8,0.0050644]
[1766688604465,0.16899,2960.8,2959.6,0.12001852]
[1766688604466,50.824,2960.9,2959.5,0.00270218]
[1766688605368,50.824,2960.9,2959.9,0.0050644]
[1766688606072,10.024,2960.9,2959.9,0.0050644]
[1766688617773,10.024,2960.9,2959.9,2.4214765]
[1766688619076,0.0050644,2961.3,2959.9,2.4214765]
[1766688620470,0.3377,2961.2,2959.9,2.4214765]
[1766688623073,0.3377,2961.2,2960.0,2.4164121]
[1766688627478,0.0050644,2961.3,2959.9,1.01123391]
[1766688627684,0.0050644,2961.3,2959.9,8.41764601]
[1766688630680,0.3376,2961.2,2959.9,8.41764601]
[1766688631783,0.3376,2961.2,2959.9,3.42764601]
[1766688631984,0.3376,2961.2,2959.9,8.44964601]
[1766688632280,0.3376,2961.2,2959.9,6.03323391]
[1766688632478,0.3376,2961.2,2959.9,6.03623391]
[1766688632679,0.3376,2961.2,2959.9,8.45264601]
[1766688633080,0.3376,2961.2,2959.9,3.42764601]
[1766688633475,0.3376,2961.2,2959.9,1.01123391]
[1766688633676,0.3376,2961.2,2959.9,6.04023391]
[1766688633878,0.3376,2961.2,2959.9,8.45664601]
[1766688634172,0.3376,2961.2,2959.9,6.04223391]
[1766688634376,0.3376,2961.2,2959.9,8.45964601]
[1766688634582,0.3376,2961.2,2959.9,3.42764601]
[1766688635483,0.3376,2961.2,2959.9,8.46164601]
[1766688635782,0.3376,2961.2,2959.9,8.46264601]
[1766688636074,0.3376,2961.2,2959.9,0.1741044]
[1766688636281,0.3376,2961.2,2959.9,0.0050644]
[1766688639988,1.17503147,2961.2,2959.9,0.0050644]
[1766688647593,1.17503147,2961.2,2959.9,0.84249587]
[1766688647787,1.17503147,2961.2,2959.9,3.25890797]
[1766688648889,0.3376,2961.2,2959.9,3.25890797]
[1766688649086,0.3376,2961.2,2960.2,0.83743147]
[1766688651895,0.3376,2961.2,2960.0,2.4164121]
[1766688653898,0.0050644,2961.3,2960.0,2.4164121]
[1766688657199,0.3376,2961.2,2960.0,2.4164121]
[1766688660401,1.17503147,2961.2,2959.9,2.4214765]
[1766688662403,0.3376,2961.2,2960.0,2.4164121]
[1766688663897,0.3376,2961.2,2960.1,2.4164121]
[1766688668807,0.0050644,2961.3,2960.5,0.83743147]
[1766688669006,0.00410405,2961.7,2960.5,0.83743147]
[1766688669393,0.00410405,2961.7,2960.4,2.4164121]
[1766688669909,0.0050644,2961.3,2960.4,2.4164121]
[1766688672407,0.0050644,2961.3,2960.3,2.4164121]
[1766688672606,0.0050644,2961.3,2960.4,2.4164121]
[1766688674410,0.0050644,2961.3,2960.3,2.4164121]
[1766688676314,0.0050644,2961.3,2960.4,2.4164121]
[1766688676518,0.0050644,2961.3,2960.3,2.4164121]
[1766688677316,0.0050644,2961.3,2960.4,2.4164121]
[1766688681420,0.0050644,2961.3,2960.3,2.4164121]
[1766688684022,0.00410405,2961.7,2960.5,0.83743147]
[1766688685022,0.0050644,2961.4,2960.5,3.25384357]
[1766688685220,0.00410405,2961.7,2960.8,0.83743147]
[1766688685929,0.00410405,2961.7,2960.8,3.25384357]
[1766688686124,0.0050644,2961.5,2960.8,3.25384357]
[1766688687427,0.0050644,2961.5,2960.8,0.83743147]
[1766688697121,0.0050644,2961.5,2960.7,2.4164121]
[1766688697633,0.00410405,2961.7,2960.7,2.4164121]
[1766688698626,0.00337628,2961.5,2960.7,2.4164121]
[1766688704429,0.00337628,2961.5,2960.4,2.5854221]
[1766688704629,0.00337628,2961.5,2960.4,0.16901]
[1766688705126,0.00337628,2961.5,2959.9,0.0050644]
[1766688713244,0.83685813,2961.3,2959.9,0.0050644]
[1766688716338,0.00337628,2961.5,2959.5,0.00270218]
[1766688716339,0.83685813,2960.9,2959.5,0.00270218]
[1766688716640,9.533,2960.8,2959.5,0.00270218]
[1766688717234,9.533,2960.8,2959.9,0.0050644]
[1766688717439,9.70199,2960.8,2959.9,0.0050644]
[1766688723551,9.70199,2960.8,2959.5,0.00270218]
[1766688723751,0.83685813,2960.7,2959.5,0.00270218]
[1766688724344,1.00585813,2960.7,2959.5,0.00270218]
[1766688724543,1.00585813,2960.7,2959.8,0.0050644]
[1766688725452,1.00585813,2960.7,2959.5,0.00270218]
[1766688725943,40.8,2960.6,2959.5,0.00270218]
[1766688726143,0.16902,2960.3,2959.5,0.00270218]
[1766688726351,1.00587813,2960.3,2959.6,0.0050644]
[1766688726548,1.00587813,2960.3,2958.8,6.70955144]
[1766688726754,0.16902,2960.2,2957.9,3.46271129]
[1766688726955,9.591,2960.1,2957.9,3.46271129]
[1766688727150,9.76003,2960.1,2957.9,1.31462118]
[1766688727351,9.76003,2960.1,2957.9,1.04979602]
[1766688727555,0.0050644,2959.3,2958.7,0.0050644]
[1766688727858,0.00944559,2959.3,2958.7,0.0050644]
[1766688736366,0.16904,2959.9,2958.7,0.0050644]
[1766688737260,0.0050644,2959.6,2958.7,0.0050644]
[1766688743859,0.0050644,2959.6,2957.9,6.70176885]
[1766688744865,0.0050644,2959.6,2958.5,0.0050644]
[1766688746566,0.3378,2959.5,2958.5,0.0050644]
[1766688760477,0.3378,2959.5,2958.5,2.4214765]
[1766688767997,0.3378,2959.5,2958.5,0.0050644]
[1766688768295,0.83829641,2959.4,2958.5,0.0050644]
[1766688772204,0.83829641,2959.0,2957.9,6.70176885]
[1766688772397,0.16908,2959.3,2957.9,6.70176885]
[1766688773299,0.16908,2959.3,2958.3,0.0050644]
[1766688777605,0.83829641,2959.5,2958.3,0.0050644]
[1766688780706,0.3379,2959.4,2958.3,0.0050644]
[1766688798922,0.19355115,2959.4,2958.3,0.84336081]
[1766688799127,0.16899,2960.7,2959.2,0.83829641]
[1766688799320,0.16899,2960.7,2959.3,0.83829641]
[1766688800119,0.0050644,2960.3,2959.7,0.0050644]
[1766688802527,0.2526644,2960.3,2959.7,0.0050644]
[1766688806530,0.2526644,2960.3,2959.3,0.83829641]
[1766688807635,0.2526644,2960.3,2959.5,0.0050644]
[1766688827642,0.0050644,2960.3,2959.5,0.0050644]
[1766688831647,0.2476,2960.2,2959.5,0.0050644]
[1766688834343,0.00340469,2960.7,2959.5,2.43509738]
[1766688835351,0.0050644,2960.4,2959.5,2.43509738]
[1766688841351,0.0050644,2960.4,2959.5,0.0050644]
[1766688861074,0.0050644,2960.4,2959.5,2.43509738]
[1766688868378,0.0050644,2960.4,2959.5,0.0050644]
[1766688871385,0.0050644,2960.4,2958.8,14.1468001]
[1766688871779,0.0050644,2960.4,2958.8,14.1478001]
[1766688872178,0.01647931,2959.6,2958.8,14.1478001]
[1766688872377,0.01647931,2959.6,2958.9,0.0050644]
[1766688873180,0.01647931,2959.3,2958.9,0.0050644]
[1766688873479,0.0050644,2960.4,2958.9,0.0050644]
[1766688873781,0.1740744,2960.4,2958.9,0.0050644]
[1766688884096,0.83795397,2960.2,2958.9,0.0050644]
[1766688887202,0.01647931,2959.6,2958.9,0.0050644]
[1766688888202,0.83795397,2960.2,2958.9,0.0050644]
[1766688902210,0.83795397,2960.2,2958.9,2.43509738]
[1766688902512,1.00696397,2960.3,2958.9,2.43509738]
[1766688902715,1.00696397,2960.3,2958.9,0.0050644]
[1766688912618,1.00696397,2960.3,2958.9,2.43509738]
[1766688917712,1.00696397,2960.3,2959.0,5.327]
[1766688918413,1.00696397,2960.3,2958.9,2.43509738]
[1766688918612,1.00696397,2960.3,2958.9,7.76809738]
[1766688921621,1.00696397,2960.3,2958.9,2.43509738]
[1766688921818,1.00696397,2960.3,2958.9,7.78809738]
[1766688924522,1.00696397,2960.3,2958.9,2.43509738]
[1766688924724,1.00696397,2960.3,2959.0,5.364]
[1766688926522,0.16902,2960.2,2958.9,2.43509738]
[1766688926725,0.83795397,2960.0,2958.9,2.43509738]
[1766688928517,0.16902,2960.2,2958.9,7.81709738]
[1766688928718,0.16902,2960.2,2958.9,5.3870644]
[1766688932524,0.0050644,2960.4,2959.0,0.83795397]
[1766688941828,0.0050644,2960.4,2959.1,5.434]
[1766688942832,0.0050644,2960.4,2959.1,7.86403298]
[1766688945543,0.0050644,2960.4,2959.2,5.446]
[1766688954855,0.0050644,2960.4,2959.1,2.43003298]
[1766688960357,0.0050644,2960.4,2959.2,2.43003298]
[1766688981889,0.0050644,2960.4,2958.9,2.43509738]
[1766688982982,0.16901,2960.3,2958.9,0.0050644]
[1766688988794,0.16901,2960.3,2958.9,5.5850644]
[1766688992093,0.16901,2960.3,2958.9,8.01509738]
[1766689002301,0.16901,2960.3,2958.9,2.43509738]
[1766689002502,0.16901,2960.3,2959.0,5.645]
[1766689005900,0.83796234,2960.2,2959.0,5.645]
[1766689012211,0.83796234,2960.2,2959.0,8.07503298]
[1766689012912,0.83796234,2959.9,2959.0,8.07503298]
[1766689013103,0.83796234,2959.9,2959.0,5.645]
[1766689013798,0.83796234,2960.2,2959.0,5.645]
[1766689014013,0.83796234,2960.2,2958.9,0.0050644]
[1766689014312,0.83796234,2960.2,2958.9,5.6950644]
[1766689022223,0.83796234,2960.2,2958.9,0.0050644]
[1766689022725,0.83796234,2959.9,2958.9,0.0050644]
[1766689023325,0.83796234,2959.9,2959.0,2.43003298]
[1766689024221,0.83796234,2959.9,2958.9,2.43509738]
[1766689027432,0.83796234,2959.6,2958.7,2.30359306]
[1766689027634,0.83796234,2959.6,2958.2,2.42137043]
[1766689027829,0.16905,2959.7,2958.3,0.83796234]
[1766689032533,0.16905,2959.7,2958.2,0.11777737]
[1766689036342,0.83796234,2959.6,2958.2,0.11777737]
[1766689036542,0.83796234,2959.6,2958.2,5.83477737]
[1766689037443,0.83796234,2959.6,2958.2,8.25900387]
[1766689046153,0.83796234,2959.6,2958.2,5.83477737]
[1766689046452,0.83796234,2959.6,2958.2,8.25900387]
[1766689051952,0.16905,2959.7,2958.4,0.83796234]
[1766689052652,0.16905,2959.7,2958.5,5.764]
[1766689054548,0.16905,2959.7,2958.2,0.11777737]
[1766689054753,0.16905,2959.7,2958.3,5.765]
[1766689064963,0.16905,2959.7,2958.2,3.37996621]
[1766689065162,0.16905,2959.7,2958.4,5.775]
[1766689066360,0.16905,2959.7,2958.5,2.4242265]
[1766689077378,0.16905,2959.7,2958.4,5.775]
[1766689078878,0.16905,2959.7,2958.3,5.777]
[1766689079780,0.16905,2959.7,2958.2,0.11777737]
[1766689080079,0.16905,2959.7,2958.3,5.777]
[1766689080876,0.16905,2959.7,2958.3,5.778]
[1766689081779,0.16905,2959.7,2958.2,0.11777737]
[1766689081980,0.16905,2959.7,2958.3,5.779]
[1766689090684,0.16905,2959.7,2958.2,0.11777737]
[1766689090885,0.16905,2959.7,2958.3,5.79]
[1766689094988,0.16905,2959.7,2958.2,0.11777737]
[1766689095183,0.16905,2959.7,2958.3,5.795]
[1766689115208,0.16905,2959.7,2958.1,4.24015719]
[1766689115411,0.16905,2959.7,2958.2,5.818]
[1766689115911,0.16905,2959.7,2958.3,5.82]
[1766689126720,0.16905,2959.7,2958.1,4.33791538]
[1766689127017,0.16905,2959.7,2958.3,5.832]
[1766689128521,0.16905,2959.7,2958.1,4.33791538]
[1766689128820,0.16905,2959.7,2958.2,5.833]
[1766689129017,0.16905,2959.7,2958.1,4.33791538]
[1766689129221,0.16905,2959.7,2958.3,5.833]
[1766689129918,0.16905,2959.7,2958.3,6.67118718]
[1766689133222,0.16905,2959.7,2958.3,0.83818718]
[1766689163347,0.16905,2959.7,2958.1,9.99835283]
[1766689163547,0.16905,2959.7,2958.1,10.83654001]
[1766689163942,0.16905,2959.7,2958.1,10.84154001]
[1766689165446,0.16905,2959.7,2958.1,4.98954001]
[1766689165641,0.16905,2959.7,2958.2,5.859]
[1766689171550,0.16905,2959.7,2958.3,5.881]
[1766689176464,41.63818718,2960.3,2958.7,0.83818718]
[1766689177463,0.16902,2960.2,2958.7,0.83818718]
[1766689190377,0.83818718,2960.0,2958.4,0.83818718]
[1766689190576,7.839,2959.9,2958.4,0.83818718]
[1766689192077,7.839,2959.9,2958.3,5.881]
[1766689192575,7.839,2959.9,2958.2,3.02867094]
[1766689193073,7.839,2959.9,2958.3,5.88]
[1766689193373,7.839,2959.9,2958.2,3.02867094]
[1766689193571,7.839,2959.9,2958.3,5.88]
[1766689193774,7.839,2959.9,2958.3,5.881]
[1766689193975,7.839,2959.9,2958.2,3.02867094]
[1766689194377,7.839,2959.9,2958.3,5.882]
[1766689194577,7.839,2959.9,2958.3,5.883]
[1766689196979,7.839,2959.9,2958.2,3.02867094]
[1766689197277,7.839,2959.9,2958.3,5.889]
[1766689200577,7.839,2959.9,2958.2,3.02867094]
[1766689200772,7.839,2959.9,2958.3,5.891]
[1766689201369,8.00804,2959.9,2958.2,3.02867094]
[1766689201569,8.00804,2959.9,2958.1,9.08781094]
[1766689204381,8.00804,2959.9,2958.2,3.02867094]
[1766689214387,8.00804,2959.9,2958.3,5.899]